{"text_format":"1","workbook":"xlsx","n_sheets":9,"sheets":["Instructions","Application for investment","Appendix A -IP","Appendix B -Financial structure","Appendix C -Prov.ProdCostBudget","Appendix D - Solemn declaration","Appendix E - Project schedule","AppendixF-Officer's certificate","AppendixG-Calculation Royalties"],"not_rendered":{"charts":0,"images":2,"macros":0,"external_links":0,"defined_names":8,"comments":0,"pivot_tables":0},"unopened":[],"bounds":{"document_bytes":16777216,"sheet_cells":100000,"rows_first":2000,"rows_last":500,"rows_between":2000,"halvings":0,"cell_chars":16384,"cell_head_chars":4096},"cells_cut":0,"cells_raw":0,"read":"whole","date_system":"1900"}

{"sheet":"Instructions","index":0,"n_rows":35,"n_cols":8,"rows_kept":35,"cut":false,"hidden":false,"merged":[[4,0,4,8],[10,0,10,8],[15,0,15,8],[17,0,17,8],[16,0,16,8],[7,0,7,8],[33,0,33,8],[34,0,34,8],[18,0,18,8],[19,0,19,8],[24,0,24,8],[25,0,25,8],[29,0,29,8],[31,0,31,8],[27,0,27,8],[22,0,22,5]]}
[]
[null,null,null,null,null,null,null,"[courtesy translation]"]
[]
[]
["Instructions – Application for Financing"]
[]
[]
["Mailing addresss and how to send application "]
[]
[]
["We recommend that you send the signed application by e-mail for faster processing. The application may also be sent by regular mail to the address indicated below."]
[]
["In any case, be sure to send the electronic file containing your application, including the appendices."]
[]
[]
["Investissement Québec"]
["Development of Quebec intellectual property in the video game industry"]
["Direction du capital de risque et des fonds d'investissement"]
["413, rue Saint-Jacques, bureau 500"]
["Montréal (Québec)   H2Y 1N9"]
[]
[]
["By e-mail to the following address: jeuvideoqc@invest-quebec.com"]
[]
["Processing time"]
["You have four years to apply for financing for video game projects, until June 10, 2019."]
[]
["Investissement Québec will send you an e-mail acknowledging receipt of this form and the requested information and documents. If your application is incomplete, Investissement Québec will let you know what information is missing."]
[]
["Please note that only complete applications will be processed."]
[]
["Following the analysis, Investissement Québec will contact you to tell you whether your application for financing has been accepted."]
[]
["A complete application includes:        \n"]
["The duly completed and signed form, including all its schedules."]

{"sheet":"Application for investment","index":1,"n_rows":245,"n_cols":9,"rows_kept":245,"cut":false,"hidden":false,"merged":[[221,0,221,8],[222,1,222,8],[223,1,223,8],[224,0,224,8],[214,1,214,8],[211,1,211,8],[208,2,208,8],[209,2,209,8],[149,0,149,8],[171,0,171,8],[189,0,189,8],[172,0,172,8],[199,0,199,8],[162,4,162,6],[234,1,234,8],[201,0,201,8],[225,1,225,8],[226,2,226,8],[227,2,227,8],[228,2,228,8],[229,2,229,8],[230,2,230,8],[231,0,231,16383],[232,1,232,8],[233,1,233,8],[215,0,215,8],[216,1,216,8],[217,1,217,8],[218,1,218,8],[219,1,219,8],[220,1,220,8],[210,1,210,8],[202,1,202,8],[203,1,203,8],[204,2,204,8],[205,2,205,8],[206,2,206,8],[207,2,207,8],[244,0,244,4],[138,0,138,3],[141,0,141,3],[191,0,191,8],[177,0,177,8],[150,4,150,6],[193,0,193,8],[194,0,194,8],[195,0,195,8],[192,0,192,8],[243,0,243,4],[160,0,160,3],[238,0,238,8],[240,0,240,8],[173,0,173,8],[179,0,179,8],[181,0,181,8],[183,0,183,8],[185,0,185,8],[198,0,198,8],[200,0,200,8],[142,0,142,8],[212,1,212,8],[213,1,213,8],[22,0,22,8],[165,4,165,6],[135,0,135,3],[146,0,146,8],[139,0,139,8],[108,0,108,3],[147,0,147,8],[150,0,150,3],[111,0,111,3],[114,0,114,3],[117,0,117,3],[120,0,120,3],[123,0,123,3],[126,0,126,3],[129,0,129,3],[30,5,30,7],[33,5,33,7],[51,5,51,7],[39,0,39,3],[39,5,39,7],[42,0,42,3],[42,5,42,7],[45,0,45,3],[62,0,62,3],[23,0,23,8],[24,0,24,8],[40,0,40,3],[27,0,27,8],[28,0,28,8],[31,0,31,3],[33,0,33,3],[73,0,73,8],[40,5,40,7],[43,0,43,3],[43,5,43,7],[31,5,31,7],[46,5,46,7],[47,5,47,7],[48,5,48,7],[45,5,45,7],[46,0,46,3],[71,0,71,8],[54,0,54,3],[70,0,70,8],[50,0,50,3],[50,5,50,7],[53,0,53,3],[56,0,56,3],[21,0,21,8],[197,0,197,8],[163,4,163,6],[164,4,164,6],[106,0,106,8],[103,0,103,8],[34,0,34,3],[34,5,34,7],[37,0,37,8],[66,0,66,8],[187,0,187,8],[115,0,115,8],[118,0,118,3],[121,0,121,8],[124,0,124,8],[127,0,127,3],[133,0,133,8],[175,0,175,8],[151,0,151,3],[68,0,68,8],[155,4,155,6],[30,0,30,3],[25,0,25,8],[26,0,26,8],[0,0,0,2],[0,4,0,8],[2,0,2,8],[4,0,4,8],[5,0,5,8],[6,0,6,8],[7,0,7,8],[8,0,8,8],[19,0,19,8],[16,0,16,8],[11,0,11,2],[11,4,11,6],[10,0,10,3],[14,4,14,6],[10,4,10,6],[13,4,13,6],[18,0,18,8],[14,0,14,2],[13,0,13,2],[17,0,17,8],[91,1,91,8],[92,1,92,8],[80,0,80,8],[82,1,82,8],[86,1,86,8],[90,1,90,8],[83,1,83,8],[84,1,84,8],[97,0,97,8],[95,0,95,8],[87,1,87,8],[88,1,88,8],[130,0,130,8],[99,0,99,3],[132,0,132,3],[102,0,102,3],[154,0,154,3],[155,0,155,3],[151,4,151,6],[152,4,152,6],[153,4,153,6],[154,4,154,6],[136,0,136,3],[109,0,109,3],[112,0,112,8],[100,0,100,3],[105,0,105,2],[144,0,144,8],[59,0,59,3],[148,0,148,8],[152,0,152,3],[153,0,153,3],[51,0,51,3],[75,0,75,8],[76,0,76,8],[77,0,77,8],[236,0,236,8],[164,0,164,3],[169,0,169,8],[159,0,159,8],[156,0,156,3],[156,4,156,6],[166,0,166,3],[166,4,166,6],[162,0,162,3],[167,0,167,6],[161,4,161,6],[165,0,165,3],[160,4,160,6],[161,0,161,3],[157,0,157,6],[163,0,163,3]]}
[]
[]
["Application for financing"]
[]
[]
["1 - Company identification"]
[]
["Company name"]
[]
[]
["NEQ (Quebec enterprise number)",null,null,null,"IQ business number (where applicable)"]
[]
[]
["Date of incorporation ",null,null,null,"Website URL "]
[]
[]
["Mailing address"]
[]
[]
[]
[]
["Address of all establishments (if more than one)"]
[]
[]
[]
[]
[]
[]
[]
[]
["Authorized company representative/agent ",null,null,null,null,"Representative/agent’s title"]
[]
[]
["Telephone #",null,null,null,null,"E-mail address"]
[]
[]
[]
["2 - Identification of video game"]
[]
["Project title ",null,null,null,null,"Project manager"]
[]
[]
["Technology director ",null,null,null,null,"Artistic director"]
[]
[]
["Interactive / game designer - scriptwriter ",null,null,null,null,"Contact person (full contact information)"]
[]
[]
[]
[]
["Scheduled start date ",null,null,null,null,"Scheduled delivery date of official beta version"]
[]
[]
["Scheduled launch date"]
[]
[]
["Number of employees in the company "]
[]
[]
["Number of jobs created by the project"]
[]
[]
["Number of sub-contractors in Quebec "]
[]
[]
[]
["3 - Description of company"]
[]
["Briefly describe the company’s history and operations: location, share capital, number of employees, industry, sub-sector, products offered, main achievements, past investments and strategic orientations. (Increase the space if necessary or attach a schedule)."]
[]
[]
[]
[]
["4 - Description of proposed video game"]
[]
["Provide a description of your project, including the following: name of game, game components, source of game content, target clientele, description and how they relate to program objectives; benefits (jobs, sales, investment, etc.). Also attach video and fixed image models of your project if requested. (Increase the space if necessary or attach a schedule)."]
[]
[]
[]
[]
["5 - Market and competition "]
[]
[null,"5.1 - Current market"]
[null,"Description of marketing methods (publisher, platforms, etc.). "]
[]
[]
[null,"5.2 - Target market"]
[null,"Description, including sectors, size, trends, growth, positioning, market share, main clients, business opportunities, competition, competitive advantages, weaknesses, risks, barriers to entry, etc."]
[]
[]
[null,"5.3 - Marketing"]
[null,"Explain the marketing strategy (various marketing models, including freemium)."]
[]
[]
[]
["6 - Project team"]
[]
["Provide a list of the project team members, their employment history and their responsibilities in the project (increase the space if necessary, attach a schedule or attach a curriculum vitae)."]
[]
["Name 1"]
[]
[]
["Employment history"]
[]
[]
["Responsibilities"]
[]
[]
["Name 2"]
[]
[]
["Employment history"]
[]
[]
["Responsibilities"]
[]
[]
["Name 3"]
[]
[]
["Employment history"]
[]
[]
["Responsibilities"]
[]
[]
["Name 4"]
[]
[]
["Employment history"]
[]
[]
["Responsibilities"]
[]
[]
["Name 5"]
[]
[]
["Employment history"]
[]
[]
["Responsibilities"]
[]
[]
["7 - Shareholding and directors of the company"]
[]
["Please fill out the following table."]
[" (*) If the shareholder is a company, indicate the name of each shareholder."]
["(**) Indicate the investors with a convertible debt who could eventually hold shares in the company. Where applicable, indicate the % interest and voting rights after such a conversion."]
["Shareholding"]
["Name of shareholders or corporate shareholder (*) (**)",null,null,null,"Citizenship",null,null,"% interest","% voting rights"]
[]
[]
[]
[]
[]
[]
["Total",null,null,null,null,null,null,1,1]
[]
["Directors"]
["Name of directors",null,null,null,"Citizenship",null,null,"% interest","% voting rights"]
[]
[]
[]
[]
[]
[]
["Total",null,null,null,null,null,null,1,1]
[]
["8 - Business plan and distribution strategy"]
[]
["Provide a description of the business plan and distribution strategy you have chosen or will choose for your proposed video game."]
[]
[]
[]
["9 - Intellectual property"]
[]
["Indicate the complete title chain by filling out Appendix A (include all documents relating to the rights with your application)."]
[]
["10 - Financial structure"]
[]
["Provide a description of your financial structure by filling out Appendix B and attach the detailed agreements and contracts with each investor."]
[]
["11 - Provisional budget"]
[]
["Provide your provisional budget by filling out the corresponding Appendix C."]
[]
["12 - Solemn declaration"]
[]
["Complete the tab \"Solemn Declaration\" in Appendix D and have your signature sworn (by a notary or commissioner of oaths), then e-mail an electronic copy of it to jeuvideoqc@invest-quebec.com along with your application and send the original by regular mail to the address below."]
[]
["Development of Quebec intellectual property in the video game industry"]
["Investissement Québec"]
["Direction du capital de risque et des fonds d'investissement"]
["413, rue Saint-Jacques, bureau 500"]
["Montréal (Québec)   H2Y 1N9"]
[]
["Please ensure you answer all the questions, include the requested documents and add schedules if there is not enough space for questions that require an extended response."]
[]
["List of Required Documents "]
[]
["Company"]
[null,"Organizational chart indicating the percentage interest of each of the Company’s shareholders."]
[null,"The Company’s minute books and a copy of all company registers, including:"]
[null,null,"Copy of the Company’s incorporating document and any amendments;"]
[null,null,"Declaration of registration and any annual and amending declarations;"]
[null,null,"List of corporate names and trade names used by the Company (business names);"]
[null,null,"Copy of the Company’s by-laws;"]
[null,null,"Copy of the Company’s borrowing by-law and any other by-law;"]
[null,null,"List of names and addresses of the Company’s directors and officers with their respective titles."]
[null,"Copy of certificates for all issued and outstanding shares."]
[null,"List of any options and other outstanding share purchase rights."]
[null,"Unanimous shareholder agreement, where applicable, as required in Schedule F of this form."]
[null,"Company background."]
[null,"Description of Company operations."]
["Project"]
[null,"Description of the project."]
[null,"Distribution and marketing strategy."]
[null,"Copy of all agreements entered into with publishers or distributors of the Project."]
[null,"Copy of all employment contracts for the Company’s employees who will take part in the Project."]
[null,"Playable prototype (vertical slice) in video format."]
["Contracts"]
[null,"Detailed agreements, contracts and addenda for financing plan."]
[null,"Copy of all deferred disbursement agreements entered into between the Company and a private lender."]
["Intellectual property"]
[null,"Detailed intellectual property agreements, i.e.:"]
[null,null,"Copy of all licensing agreements for intellectual property belonging to third parties and granted to the Company."]
[null,null,"Copy of all licensing agreements for intellectual property belonging to the Company and granted to third parties."]
[null,null,"Copy of all agreements entered into by the Company with freelancers or subcontractors regarding any intellectual property used in the Project."]
[null,null,"Copy of any agreement entered into by the Company granting royalties to a third party."]
[null,null,"Copy of all agreements entered into by the Company with any third party assigning any intellectual property used in the Project."]
["Financial documents "]
[null,"Business plan."]
[null,"Financial structure."]
[null,"Annual financial statements of the Company and any affiliates for the past three fiscal years."]
[]
["To normalize any irregularity detected during the due diligence review of the intellectual property, all fees and disbursements incurred by IQ with its outside legal counsel shall be deducted from the first payment of the Contribution or any later payment if these irregularities arise during an update. "]
[]
["13 - Signature of authorized company representative or agent"]
[]
["I, the undersigned, duly authorized representative or agent of the Company, declare that the information provided in this application, the appendices and all related documents is complete and accurate in every respect."]
[]
[]
[]
["Signature of company’s authorized representative or agent",null,null,null,null,null,null,"Date"]

{"sheet":"Appendix A -IP","index":2,"n_rows":104,"n_cols":1,"rows_kept":104,"cut":false,"hidden":false,"merged":[[4,0,4,8],[6,0,6,8],[8,0,8,8],[103,0,103,8],[24,0,24,8],[31,0,31,8],[52,0,52,8],[55,0,55,8],[69,0,69,8],[77,0,77,8],[89,0,89,8],[102,0,102,8],[10,0,10,8],[13,0,13,8],[22,0,22,8],[11,0,11,8],[12,0,12,8],[23,0,23,8],[32,0,32,8],[45,0,45,8],[58,0,58,8],[67,0,67,8],[33,0,33,8],[46,0,46,8],[14,0,14,8],[15,0,15,8],[16,0,16,8],[118,0,118,8],[109,0,109,8],[110,0,110,8],[111,0,111,8],[112,0,112,8],[113,0,113,8],[104,0,104,8],[105,0,105,8],[106,0,106,8],[107,0,107,8],[108,0,108,8],[17,0,17,8],[18,0,18,8],[19,0,19,8],[20,0,20,8],[21,0,21,8],[114,0,114,8],[115,0,115,8],[116,0,116,8],[117,0,117,8],[101,0,101,8],[38,0,38,8],[39,0,39,8],[51,0,51,8],[40,0,40,8],[41,0,41,8],[42,0,42,8],[43,0,43,8],[44,0,44,8],[47,0,47,8],[48,0,48,8],[49,0,49,8],[50,0,50,8],[30,0,30,8],[34,0,34,8],[35,0,35,8],[36,0,36,8],[37,0,37,8],[25,0,25,8],[26,0,26,8],[27,0,27,8],[28,0,28,8],[29,0,29,8],[71,0,71,8],[72,0,72,8],[70,0,70,8],[53,0,53,8],[54,0,54,8],[59,0,59,8],[68,0,68,8],[56,0,56,8],[57,0,57,8],[60,0,60,8],[61,0,61,8],[62,0,62,8],[63,0,63,8],[64,0,64,8],[65,0,65,8],[66,0,66,8],[73,0,73,8],[74,0,74,8],[75,0,75,8],[76,0,76,8],[78,0,78,3],[79,0,79,3],[80,0,80,3],[78,6,78,8],[79,6,79,8],[80,6,80,8],[81,0,81,3],[82,0,82,3],[83,0,83,3],[84,0,84,3],[85,0,85,3],[86,0,86,3],[81,6,81,8],[82,6,82,8],[83,6,83,8],[84,6,84,8],[85,6,85,8],[86,6,86,8],[87,0,87,3],[88,0,88,3],[87,6,87,8],[88,6,88,8],[90,0,90,3],[91,0,91,3],[92,0,92,3],[93,0,93,3],[94,0,94,3],[90,6,90,8],[91,6,91,8],[92,6,92,8],[93,6,93,8],[94,6,94,8],[95,0,95,3],[96,0,96,3],[120,0,120,8],[121,0,121,8],[119,0,119,8],[100,0,100,3],[100,6,100,8],[97,0,97,3],[98,0,98,3],[99,0,99,3],[99,6,99,8],[95,6,95,8],[96,6,96,8],[97,6,97,8],[98,6,98,8]]}
[]
[]
[]
[]
["Appendix A"]
[]
["Appendix A forms an integral part of this application"]
[]
["INTELLECTUAL PROPERTY"]
[]
["For the purposes hereof, the expression “Intellectual Property” means the universality of the intellectual property rights of the Company, whether registered or unregistered, including, where applicable, the improvements thereto and modifications thereof, as well as the rights to all applications relating to the protection, in Canada and elsewhere, of any such intellectual property rights, including, without limiting the generality of the foregoing, all inventions, discoveries, recipes, methods and methodologies, formulas, plans, algorithms and processes, patents, pending or future patent applications, the processes or improvements of a product or procedure, know-how, techniques, trade secrets, confidential information of the Company, corporate or other business records, goodwill, customer lists, current and future trade-marks which are registered and for which registration is pending, publications, articles, scientific and economic studies, business plans, promotional materials, trade names, forms, graphic elements, source codes, data bases, software, software documentation, plates, masks, templates, registered or unregistered works the protection of which is governed by the Copyright Act (Canada), the registration of industrial designs, pending or future applications to register industrial designs, registered domain names, pending or future applications to register domain names, present or future rights to licences covering Intellectual Property rights from which the Company benefits, and the rights to licences covering the intellectual property granted by the Company to third parties."]
["Without limiting the generality of the foregoing, the Intellectual Property relating to the Project consists of the following:"]
["Copyright"]
["\nIn this section, describe all source codes, data bases, user manuals, content and graphic elements related to the Project, whether or not they are registered with an intellectual property office."]
[]
[]
[]
[]
[]
[]
[]
[]
[]
["Trade-marks"]
["In this section, describe all logos, slogans or other distinctive mark used in connection with the Project."]
[]
[]
[]
[]
[]
[]
[]
["Patents"]
["In this section, describe all patents registered or patent applications filed with an intellectual property office."]
[]
[]
[]
[]
[]
[]
[]
[]
[]
[]
[]
["Domain names"]
["\nIn this section, list all domain names used in connection with the Project."]
[]
[]
[]
[]
[]
[]
[]
[]
[]
[]
[]
["Third party rights granted under licence"]
["\nIn this section, describe all intellectual property belonging to third parties used in connection with the Project."]
[]
[]
[]
[]
[]
[]
[]
["Licences granted to third parties relating to the Intellectual Property"]
["In this section, describe the rights granted to third parties relating to any Intellectual Property used in connection with the Project."]
[]
[]
[]
[]
[]
[]
[]
[]
["List of employees participating in the Project"]
[]
[]
[]
[]
[]
[]
[]
[]
[]
[]
[]
["List of freelancers participating in the Project "]
[]
[]
[]
[]
[]
[]
[]
[]
[]
[]
[]
[]
["List of Intellectual Property from freelancers "]
["In this section, describe any Intellectual Property created or produced by freelancers."]

{"sheet":"Appendix B -Financial structure","index":3,"n_rows":32,"n_cols":13,"rows_kept":32,"cut":false,"hidden":false,"merged":[[27,12,27,13],[21,10,21,11],[22,10,22,11],[23,10,23,11],[24,10,24,11],[25,10,25,11],[25,12,25,13],[21,12,21,13],[22,12,22,13],[23,12,23,13],[24,12,24,13],[26,12,26,13],[15,12,15,13],[18,10,18,11],[19,10,19,11],[20,10,20,11],[31,2,31,13],[30,2,30,13],[17,7,17,8],[17,9,27,9],[17,10,17,11],[17,12,17,13],[28,2,28,13],[26,10,26,11],[27,10,27,11],[18,12,18,13],[19,12,19,13],[20,12,20,13],[19,2,19,5],[18,2,18,5],[19,7,19,8],[14,2,14,5],[13,2,13,5],[13,7,13,8],[14,7,14,8],[18,7,18,8],[15,1,15,6],[17,1,17,5],[26,2,26,5],[26,7,26,8],[27,7,27,8],[25,2,25,5],[24,7,24,8],[25,7,25,8],[27,1,27,6],[21,2,21,5],[22,2,22,5],[23,2,23,5],[24,2,24,5],[8,7,8,8],[9,7,9,8],[10,7,10,8],[11,7,11,8],[8,2,8,5],[9,2,9,5],[10,2,10,5],[20,2,20,5],[22,7,22,8],[23,7,23,8],[20,7,20,8],[21,7,21,8],[10,12,10,13],[6,7,6,8],[6,1,6,5],[7,2,7,5],[12,2,12,5],[11,2,11,5],[12,7,12,8],[12,12,12,13],[6,10,6,11],[6,12,6,13],[7,10,7,11],[7,12,7,13],[6,9,15,9],[11,12,11,13],[13,12,13,13],[14,12,14,13],[29,2,29,13],[2,0,2,15],[4,0,4,15],[1,0,1,15],[7,7,7,8],[15,7,15,8],[13,10,13,11],[14,10,14,11],[15,10,15,11],[8,12,8,13],[8,10,8,11],[9,10,9,11],[10,10,10,11],[11,10,11,11],[12,10,12,11],[9,12,9,13]]}
[]
["Appendix B"]
["Appendix B forms an integral part of this application."]
[]
["FINANCIAL STRUCTURE"]
[]
[null,"Public sources of financing (a)",null,null,null,null,"Investor’s head office and nationality  (c)","Amount of financing (d)",null,null,"Right to production income (%)",null,"Right to intellectual property (Yes/No and share (%), where applicable)"]
[null,1,"IQ/Development of intellectual property program",null,null,null,"Quebec","Insert the amount",null,null,"Insert % "]
[null,2]
[null,3]
[null,4]
[null,5]
[null,6]
[null,7]
[null,8]
[null,"Total public financing ",null,null,null,null,null,{"$f":"SUM(H9:I15)","v":0}]
[]
[null,"Private sources of financing (b)",null,null,null,null,"Investor’s head office and nationality  (c)","Amount of financing (d)",null,null,"Right to production income (%)",null,"Right to intellectual property (Yes/No and share (%), where applicable)"]
[null,9]
[null,10]
[null,11]
[null,12]
[null,13]
[null,14]
[null,15]
[null,16]
[null,17]
[null,"Total private financing",null,null,null,null,null,{"$f":"SUM(H19:I27)","v":0}]
[null,"(a)","Sources of public financing include, without limitation, any form of public financing (municipal, provincial and federal) received or receivable by the company in connection with its proposed video game. Please also provide a copy of all financing contracts for sources of public financing."]
[null,"(b)","Include proof of receipt and/or proof of a formal, binding agreement that the funds will be disbursed upon the expiry of a fixed and unconditional term. Please also provide a copy of all financing contracts for sources of private financing."]
[null,"(c)","Indicate the country (or province) in which the private /public investor's head office, decision-making centre and principal place of business is located."]
[null,"(d)","Please ensure that the total amount of public and private financing is the same as the total project cost as indicated under the “Provisional budget\" tab."]

{"sheet":"Appendix C -Prov.ProdCostBudget","index":4,"n_rows":38,"n_cols":12,"rows_kept":38,"cut":false,"hidden":false,"merged":[[32,6,32,8],[26,0,26,1],[23,9,23,10],[35,5,36,11],[22,0,22,11],[28,0,28,11],[27,4,27,5],[24,9,27,10],[26,2,26,5],[32,9,32,10],[25,0,25,1],[25,2,25,5],[24,0,24,1],[34,5,34,11],[24,2,24,5],[11,2,11,5],[12,2,12,5],[13,2,13,5],[14,2,14,5],[15,2,15,5],[19,2,19,5],[20,2,20,5],[23,0,23,1],[21,4,21,5],[16,2,16,5],[17,2,17,5],[18,2,18,5],[23,2,23,5],[18,0,18,1],[17,0,17,1],[15,0,15,1],[16,0,16,1],[20,0,20,1],[19,0,19,1],[4,0,4,11],[5,0,5,11],[14,0,14,1],[12,0,12,1],[13,0,13,1],[7,0,7,11],[11,0,11,1],[9,9,9,10],[9,6,9,8],[9,11,10,11],[9,2,10,5],[9,0,10,1],[37,0,37,4],[37,5,37,11],[34,0,34,1],[34,2,34,4],[35,0,35,1],[36,0,36,1],[35,2,35,4],[36,2,36,4]]}
[]
[]
[]
[]
["Appendix C"]
["Appendix C forms an integral part of this application."]
[]
["PROVISIONAL PRODUCTION COST BUDGET"]
[]
["Expenditures",null,"Detailed description",null,null,null,"Cost allocation",null,null,"Cost origin",null,"Total"]
[null,null,null,null,null,null,"Internal","Related","External","Quebec","Outside Quebec "]
["Ex: Producer",null,"Purchase of right to story",null,null,null,null,null,40000,40000,null,{"$f":"SUM(G12:I12)","v":40000}]
["Ex: Audio/video labour",null,"Sound effects (sub-contractor’s fee)",null,null,null,null,null,10000,null,10000,{"$f":"SUM(G13:I13)","v":10000}]
["Ex: Production labour",null,"Interface and programming (salaries)",null,null,null,250000,null,null,250000,null,250000]
["Ex: Materials and infrastructure",null,"Purchase of software and computer systems ",null,null,null,null,null,10000,null,10000,10000]
["Ex: Salary of internal employees ",null,"Salary of internal employees assigned to the project",null,null,null,800000,null,null,800000,null,800000]
[null,null,null,null,null,null,null,null,null,null,null,0]
[null,null,null,null,null,null,null,null,null,null,null,0]
[null,null,null,null,null,null,null,null,null,null,null,0]
[null,null,null,null,null,null,null,null,null,null,null,0]
[null,null,null,null,null,null,null,null,null,null,null,0]
[null,null,null,null,"Sub-total",null,{"$f":"SUM(G12:G21)","v":1050000},0,60000,1090000,20000,1110000]
[]
["Marketing",null,"Detailed description",null,null,null,"Internal","Related","External","N/A  (a)",null,"Total"]
["Ex: Marketing, promotion",null,"Purchase of advertising on websites and social networks",null,null,null,null,null,50000,null,null,50000]
["Ex: Campaign development ",null,"Programming and artwork for posters",null,null,null,25000,null,null,null,null,25000]
[null,null,null,null,null,null,null,null,null,null,null,0]
[null,null,null,null,"Sub-total",null,{"$f":"SUM(G25:G27)","v":25000},{"$f":"SUM(H25:H27)","v":0},{"$f":"SUM(I25:I27)","v":50000},null,null,{"$f":"SUM(L25:L27)","v":75000}]
[]
[]
[null,null,null,null,null,null,"Internal","Related","External","Quebec","Outside Quebec","Total"]
[null,null,null,"TOTAL PRODUCTION COSTS",null,null,{"$f":"SUM(G22+G28)","v":1075000},{"$f":"SUM(H22+H28)","v":0},{"$f":"SUM(I22+I28)","v":110000},{"$f":"J22","v":1090000},{"$f":"K22","v":20000},{"$f":"SUM(L22+L28)","v":1185000}]
[null,null,null,null,null,null,"% production costs in Quebec (b)",null,null,{"$f":"1-(K32/J32)","v":0.98165137614678899}]
[]
["Budget prepared by:"]
["Date :",null,null,null,null,"(a) Marketing and/or distribution expenses to promote the project should not be included in calculating expenses incurred in Quebec."]
["Signature * :"]
["* By signing this document, I certify that the internal and related expenses correspond to the actual cost or exchange value of the goods or services listed. No profit has been added to the anticipated expenses.",null,null,null,null,"(b) The majority of the project expenses must be directly or indirectly incurred in Quebec."]

{"sheet":"Appendix D - Solemn declaration","index":5,"n_rows":52,"n_cols":3,"rows_kept":52,"cut":false,"hidden":false,"merged":[[14,0,14,16383],[38,0,38,3],[4,0,4,8],[8,0,8,8],[20,0,20,8],[23,0,23,8],[25,0,25,8],[27,0,27,8],[29,0,29,8],[5,0,5,8],[15,3,15,8],[13,5,13,8],[51,0,51,3],[39,0,39,3],[43,0,43,3],[50,0,50,3],[32,0,32,8]]}
[]
[]
[]
[]
["Appendix D"]
["Appendix D forms an integral part of this application"]
[]
[]
["SOLEMN DECLARATION"]
[]
[]
[]
[]
["Re : ","Contribution by Investissement Québec to"]
[]
[null,"Company’s name:"]
[]
[null,null,"                                                                                                                                                                                                                                                  "]
[]
[]
["I, the undersigned, ________________________________  (name and profession), residing and domiciled at ______________________________, judicial district of ________________, solemnly declare as follows:"]
[]
[]
["I am the President of _______________________ (company’s name), duly authorized by the Company;"]
[]
["There is no right, agreement or option of any nature whatsoever which could hinder, modify or change the control of the Company in any manner;"]
[]
["The Company is entitled to use the intellectual property necessary to create the video game;"]
[]
["The Company is unaware of any opposition regarding the said intellectual property or any action for infringement against it in Canada or elsewhere with regard thereto;"]
[]
[]
["The Company authorizes Investissement Québec to exchange with the relevant government departments and bodies and financial institutions the information or documents necessary to analyze its application for financing, including this declaration; without limiting the generality of the foregoing, the Company authorizes any financial institution with which it does business to exchange with Investissement Québec any information and document in its possession which is necessary to analyze its application for financing."]
[]
["AND I HAVE SIGNED"]
[]
[]
[]
[]
["Signature of President of the Company"]
[]
[]
[]
["Solemnly declared before me"]
[]
["in             ________________________     this      _________________________"]
[]
[]
[]
[]
[]
["Commissioner of oaths or notary"]

{"sheet":"Appendix E - Project schedule","index":6,"n_rows":29,"n_cols":8,"rows_kept":29,"cut":false,"hidden":false,"merged":[[20,2,20,4],[20,7,20,11],[26,0,26,1],[26,2,26,4],[15,0,15,1],[15,2,15,4],[16,0,16,1],[16,2,16,4],[24,0,24,1],[24,2,24,4],[24,7,24,11],[25,0,25,1],[25,2,25,4],[25,7,25,11],[21,7,21,11],[22,7,22,11],[28,0,28,11],[17,0,17,1],[17,2,17,4],[21,0,21,1],[21,2,21,4],[22,0,22,1],[22,2,22,4],[18,0,18,1],[18,2,18,4],[19,0,19,1],[19,2,19,4],[20,0,20,1],[26,7,26,11],[23,0,23,1],[23,2,23,4],[23,7,23,11],[5,0,5,11],[6,0,6,11],[9,0,9,11],[11,7,11,11],[12,7,12,11],[12,0,12,1],[12,2,12,4],[18,7,18,11],[19,7,19,11],[11,0,11,1],[11,2,11,4],[13,7,13,11],[14,7,14,11],[15,7,15,11],[16,7,16,11],[17,7,17,11],[13,0,13,1],[13,2,13,4],[14,0,14,1],[14,2,14,4]]}
[]
[]
[]
[]
[]
["Appendix E"]
["Appendix E forms an integral part of this application"]
[]
[]
["PROJECT SCHEDULE"]
[]
["Deliverable product",null,"Description",null,null,"Scheduled date","Actual date","Explanation if difference between\nscheduled date and actual date"]
[]
[]
[]
[]
[]
[]
[]
[]
[]
[]
[]
[]
[]
[]
[]
[]
["N.B. All future disbursement commitments by private investors depending on the achievement of a deliverable product must be described in this appendix. See footnote (b) of Appendix B about future disbursements upon the expiry of a fixed and unconditional term. "]

{"sheet":"AppendixF-Officer's certificate","index":7,"n_rows":43,"n_cols":6,"rows_kept":43,"cut":false,"hidden":false,"merged":[[4,0,4,8],[5,0,5,8],[8,0,8,8],[11,1,11,3],[27,0,27,8],[15,0,15,8],[19,0,19,8],[21,0,21,8],[13,0,13,8],[29,0,29,8],[17,0,17,8],[37,0,37,3],[42,0,42,3],[41,0,41,3],[23,0,23,8],[25,0,25,8],[33,2,33,3],[33,6,33,7]]}
[]
[]
[]
[]
["Appendix F"]
["Appendix F forms an integral part of this application"]
[]
[]
["OFFICER’S CERTIFICATE"]
[]
[]
["TO :","INVESTISSEMENT QUÉBEC"]
[]
[" I, the undersigned , _______________, declare and certify as follows, in my capacity as _________________  (title) of the Company and without personal liability, which declarations are accurate and complete as of the date hereof:                      "]
[]
["1. I am the _________________ (title) of the Company and, as such, I am personally aware of the affairs of the Company and the facts attested to in this signed declaration and I am authorized to make these declarations."]
[]
["2. A true copy of the constituting documents of the Company and any amendment thereof (the “Constituting Documents”) is attached to this declaration as Schedule 1 and the said documents are still in effect as of the date hereof and have not been modified or amended and no steps are being taken to modify or amend them."]
[]
["3. A certified true copy of the Company’s by-laws (the “By-laws”) is attached to this declaration as Schedule 2 as of the date hereof and they have not been modified or amended and no steps are being taken to modify or amend them.\n\n"]
[]
["4. Subject to the unanimous shareholder agreement communicated as Schedule 1 hereto, there is no unanimous shareholder agreement or sole shareholder’s declaration in effect at the Company. Moreover, no modification or amendment has been made to the unanimous shareholder agreement attached as Schedule 3 since it was signed and no steps are being taken to modify or amend it."]
[]
["5. The Company is in good standing under An Act respecting the legal publicity of enterprises."]
[]
["6. To the best of my knowledge, no proceeding exists or is being threatened which could render the Company insolvent, wind it up, cause its bankruptcy or liquidation or cancel or revoke its Constituting Documents. No resolution has been adopted by the Company and no request has been made by or on behalf of the Company which would have the effect of liquidating, winding up or otherwise ending the existence of the Company or causing the Company to be subject to the Bankruptcy and Insolvency Act (RSC 1985, c. C-36) or any similar legislation."]
[]
["7. The domicile, principal place of business and decision-making centre of the Company is situated at ________________________________."]
[]
["8. I acknowledge, in my capacity as _________________ (title) of the Company, that Investissement Québec will rely on the statements and representations made in this declaration for the purpose of signing the Contract."]
[]
[]
[]
["And I have signed in   ",null,null,null,null,"this "]
[]
[]
[]
[]
["Signature "]
[]
[]
[]
["Name and title of representative"]

{"sheet":"AppendixG-Calculation Royalties","index":8,"n_rows":38,"n_cols":8,"rows_kept":38,"cut":false,"hidden":false,"merged":[[1,1,1,7],[3,1,3,7],[5,1,5,7]]}
[]
[null,"Appendix G"]
[]
[null,"Calculation of Royalties "]
[]
[null,"Appendix G forms an integral part of this application"]
[]
[null,"Please do not write in the shaded cells. "]
["NAME OF GAME : "]
[]
["REVENUE","Year 1","Year 2","Year 3","Year 4","Year 5","Year 6","Year 7"]
["Production revenue",null,0,0,0,0,0,0]
["TOTAL REVENUE",{"$f":"B12","v":0},0,0,0,0,0,0]
[]
["EXPENSES"]
["Eligible expenses - Marketing - Commercialization",null,0,0,0,0,0,0]
["Other expenses considered reasonable by IQ",null,0,0,0,0,0,0]
["TOTAL EXPENSES",{"$f":"B16+B17","v":0},{"$f":"C16+C17","v":0},0,0,0,0,0]
[]
["Preemptive priority  (Recoup)",null,0,0,0,0,0,0]
[]
["SHAREABLE REVENUE",{"$f":"B13-B18-B20","v":0},{"$f":"C13-C18-C20","v":0},0,0,0,0,0]
[]
["PERCENTAGE"]
["Developer  %","%","%","%","%","%","%","%"]
["Publisher %","%","%","%","%","%","%","%"]
["Investor 1 %","%","%","%","%","%","%","%"]
["Investor 2 %","%","%","%","%","%","%","%"]
["Investor 3 %","%","%","%","%","%","%","%"]
["Investissement Québec  %","%","%","%","%","%","%","%"]
[]
["TOTAL TO BE PAID"]
["Developer",{"$f":"$B$22*B25","v":{"$error":"#VALUE!"}},0,0,0,0,0,0]
["Publisher",{"$error":"#VALUE!"},0,0,0,0,0,0]
["Investor  1",{"$error":"#VALUE!"},0,0,0,0,0,0]
["Investor  2",{"$error":"#VALUE!"},0,0,0,0,0,0]
["Investor  3",{"$error":"#VALUE!"},0,0,0,0,0,0]
["Investissement Québec",{"$error":"#VALUE!"},0,0,0,0,0,0]